bitfinex-derivatives/quotes_ETHF0:USTF0_20251216
["timestamp","ask_amount","ask_price","bid_price","bid_amount"]
[1765901354294,0.0086984,2947.0,2946.7,3.2078]
[1765901354593,0.0086984,2947.0,2946.4,5.1212]
[1765901354797,0.16961,2948.6,2947.2,1.9134]
[1765901354990,0.16957,2949.2,2947.2,1.9134]
[1765901355189,44.43290997,2949.1,2947.2,1.9134]
[1765901355897,0.0050869,2948.4,2947.9,0.0050869]
[1765901356089,0.0050869,2948.4,2948.0,1.9134]
[1765901356396,3.49e-06,2949.1,2949.0,0.0008]
[1765901356689,3.49e-06,2949.1,2948.8,1.9134]
[1765901357097,3.49e-06,2949.1,2948.0,1.9134]
[1765901357395,0.0050869,2948.8,2948.0,1.9134]
[1765901357591,1.9689869,2948.8,2947.2,1.91724321]
[1765901358097,1.9689869,2948.8,2947.2,3.61124321]
[1765901358293,0.0050869,2948.8,2948.0,0.8918]
[1765901358498,0.0050869,2948.8,2947.6,3.126]
[1765901358697,0.0050869,2948.8,2947.2,1.91724321]
[1765901358905,1.9689869,2948.8,2947.2,1.91724321]
[1765901359196,2.1385769,2948.8,2947.2,3.61824321]
[1765901359395,0.0050869,2948.8,2947.2,3.61824321]
[1765901359694,0.0050869,2948.8,2948.0,0.8555]
[1765901359903,0.0050869,2948.8,2948.0,1.02514]
[1765901360196,0.0050869,2948.8,2948.1,4.642]
[1765901360591,0.0050869,2948.8,2948.0,0.8555]
[1765901360791,0.16961,2948.6,2947.2,25.66624321]
[1765901360993,0.16961,2948.5,2948.1,3.2078]
[1765901361394,5.1767869,2948.8,2948.1,3.2078]
[1765901361601,0.16962,2948.4,2948.1,3.2078]
[1765901363003,5.1767869,2948.8,2948.1,3.2078]
[1765901363311,3.2128869,2948.8,2948.1,3.2078]
[1765901363897,0.0050869,2948.8,2948.5,3.2078]
[1765901364398,0.0050869,2948.8,2948.2,3.2078]
[1765901364608,1.9689869,2948.8,2948.2,3.2078]
[1765901364896,0.0050869,2948.8,2948.2,3.2078]
[1765901365097,0.0050869,2948.8,2948.5,3.2078]
[1765901367202,3.49e-06,2949.1,2948.6,6.0]
[1765901367399,3.49e-06,2949.1,2949.0,3.2078]
[1765901368802,3.49e-06,2949.1,2949.0,9.2078]
[1765901369014,3.49e-06,2949.1,2949.0,3.2078]
[1765901369200,0.16959,2948.9,2947.6,3.2078]
[1765901369399,3.2078,2948.8,2948.0,3.2078]
[1765901369599,3.2078,2948.7,2948.0,3.2078]
[1765901371208,0.16961,2948.6,2948.0,3.2078]
[1765901371715,3.2078,2948.7,2948.0,3.2078]
[1765901371915,3.49e-06,2949.1,2948.6,3.2078]
[1765901372301,3.49e-06,2949.1,2949.0,3.2078]
[1765901374913,3.49e-06,2949.1,2949.0,7.83610009]
[1765901375111,3.49e-06,2949.1,2949.0,3.2078]
[1765901377209,3.49e-06,2949.1,2949.0,13.73495354]
[1765901377411,3.2078,2950.4,2949.1,2.0087]
[1765901377610,3.2078,2950.4,2949.8,1.5006]
[1765901377804,3.2078,2950.7,2949.8,1.5006]
[1765901378008,3.2078,2950.7,2950.2,3.2078]
[1765901378516,3.21370829,2950.7,2950.2,3.21529061]
[1765901379106,0.00590829,2950.7,2950.2,3.21529061]
[1765901379306,3.21370829,2950.7,2950.2,0.00749061]
[1765901379512,3.2078,2950.4,2950.2,0.00749061]
[1765901379712,3.3773,2950.4,2950.2,0.00749061]
[1765901380014,6.0,2950.3,2949.4,3.2078]
[1765901380210,2.0305,2950.5,2948.6,0.4458318]
[1765901380211,2.20004,2949.8,2949.1,3.2078]
[1765901380402,5.40784,2949.8,2949.1,3.2078]
[1765901380810,5.2383,2949.8,2949.1,3.2078]
[1765901381009,5.2383,2949.8,2949.2,0.0050869]
[1765901381411,3.2078,2949.8,2949.2,0.0050869]
[1765901381620,0.16956,2949.3,2949.2,0.0050869]
[1765901381915,2.0305,2949.1,2947.8,3.2078]
[1765901382218,3.2078,2948.5,2947.8,3.2078]
[1765901382424,2.0305,2948.4,2947.8,3.2078]
[1765901382718,2.03997476,2948.4,2947.8,3.21536891]
[1765901385119,0.00947476,2948.4,2947.8,3.21536891]
[1765901385913,2.03997476,2948.4,2947.8,3.21536891]
[1765901386814,0.00947476,2948.4,2947.8,3.21536891]
[1765901387216,2.03997476,2948.4,2947.8,3.21536891]
[1765901387422,2.03997476,2948.4,2947.8,0.00756891]
[1765901387622,3.2078,2948.2,2947.8,0.00756891]
[1765901388513,0.00947476,2948.4,2948.1,3.2078]
[1765901390912,0.00947476,2948.4,2948.2,4.4767081]
[1765901391115,3.2078,2949.5,2948.4,1.8822]
[1765901391320,3.2078,2949.5,2948.7,3.2078]
[1765901391717,3.2078,2949.5,2949.0,3.2078]
[1765901391919,3.2078,2949.8,2949.3,3.2078]
[1765901392114,0.00846756,2949.8,2949.3,3.37736]
[1765901393226,2.03896756,2949.8,2949.3,3.2078]
[1765901393614,5.24676756,2949.8,2949.3,3.2078]
[1765901394019,2.03896756,2949.8,2948.9,3.2078]
[1765901394220,0.00846756,2949.8,2949.1,1.9128]
[1765901394519,3.21626756,2949.8,2949.0,3.2078]
[1765901394717,5.24676756,2949.8,2949.0,3.2078]
[1765901395224,3.2078,2949.4,2948.7,3.2078]
[1765901396313,5.2383,2949.1,2948.4,3.2078]
[1765901396513,3.2078,2948.8,2948.1,3.2078]
[1765901399125,40.8,2948.7,2948.1,3.2078]
[1765901399521,3.2078,2948.5,2947.8,3.38501891]
[1765901399725,0.16964,2947.9,2946.4,4.32546666]
[1765901400026,3.2078,2947.6,2946.7,0.16971]
[1765901400222,3.2078,2947.6,2947.2,0.16968]
[1765901400417,3.2078,2947.6,2947.0,2.0087]
[1765901400418,2.0305,2949.1,2947.3,0.16967]
[1765901400619,2.0305,2949.1,2947.3,4.59328053]
[1765901400620,0.9138193,2949.0,2947.3,4.59328053]
[1765901400822,0.0050869,2948.4,2947.9,0.0050869]
[1765901401022,2.0355869,2948.4,2947.9,0.0050869]
[1765901401222,2.0305,2947.7,2947.3,0.00239064]
[1765901401627,2.0305,2947.0,2945.6,2.12706211]
[1765901401820,4.00635053,2948.4,2946.6,2.93242187]
[1765901402020,0.16963,2948.2,2946.4,4.49282508]
[1765901402222,0.0050869,2947.6,2947.0,0.0050869]
[1765901402529,40.8050869,2947.6,2947.0,0.00770273]
[1765901402729,0.0050869,2947.6,2947.0,0.00770273]
[1765901402930,0.0050869,2947.6,2947.0,2.01640273]
[1765901403529,0.17299884,2949.0,2947.1,4.50734076]
[1765901403729,0.17299884,2949.0,2947.5,0.16966]
[1765901403926,0.00341884,2949.0,2947.5,0.16966]
[1765901404129,0.16961,2948.6,2947.1,4.50734076]
[1765901404426,0.00341884,2949.0,2947.7,1.9748]
[1765901404826,0.0050869,2948.6,2947.7,1.9748]
[1765901405318,0.0050869,2948.6,2947.8,4.48701072]
[1765901405518,4.5270194,2948.4,2947.0,2.01640273]
[1765901405723,4.5270194,2948.4,2947.0,0.00770273]
[1765901405924,0.16964,2948.1,2947.0,0.00770273]
[1765901406128,0.16966,2947.6,2947.0,0.00770273]
[1765901406327,1.9377,2948.4,2947.0,0.00770273]
[1765901406328,2.10732,2948.4,2947.0,1.81660273]
[1765901406533,0.0050869,2948.6,2947.3,2.5893194]
[1765901406733,0.0050869,2948.6,2947.7,2.14445]
[1765901407027,0.0050869,2948.6,2947.4,4.49492744]
[1765901407230,0.0050869,2948.6,2947.0,1.98630273]
[1765901407430,0.0050869,2948.6,2947.0,1.81660273]
[1765901407631,0.0050869,2948.6,2947.2,0.16968]
[1765901408531,1.9377,2948.4,2947.0,1.81660273]
[1765901408727,3.2078,2947.6,2947.0,1.81660273]
[1765901408927,1.9377,2948.4,2947.0,1.81660273]
[1765901408928,3.2078,2947.9,2947.0,1.81660273]
[1765901409131,3.2078,2947.6,2947.0,0.00770273]
[1765901409531,3.2078,2947.3,2947.0,0.00770273]
[1765901410431,44.0078,2947.3,2947.0,0.00770273]
[1765901411630,0.16969,2947.2,2947.0,0.00770273]
[1765901411825,6.16969,2947.2,2947.0,0.00770273]
[1765901412026,0.16972,2946.7,2945.6,1.8499]
[1765901412230,1.9377,2947.0,2945.1,3.2078]
[1765901412231,3.37755,2946.1,2945.1,3.2078]
[1765901412430,3.2078,2945.5,2944.9,1.9748]
[1765901412630,3.2078,2945.8,2945.1,3.2078]
[1765901412830,3.2078,2946.2,2945.4,3.2078]
[1765901413026,0.0050869,2946.1,2945.5,0.0050869]
[1765901413242,0.0050869,2946.1,2945.6,1.764]
[1765901413424,0.0050869,2946.1,2945.6,4.9718]
[1765901413624,0.0050869,2946.1,2945.9,3.2078]
[1765901414039,3.2078,2946.8,2946.0,10.36197132]
[1765901414227,3.2078,2946.8,2946.1,0.16975]
[1765901414427,3.2078,2946.8,2946.1,3.37755]
[1765901415030,0.0050869,2946.7,2946.1,3.37755]
[1765901415434,0.0050869,2946.7,2946.3,1.9073]
[1765901415633,0.0050869,2946.7,2946.5,0.16973]
[1765901416429,3.2078,2946.6,2945.8,3.37756]
[1765901416736,3.2078,2946.6,2946.1,3.2078]
[1765901417036,0.0050869,2946.7,2946.3,2.01373]
[1765901417436,0.0050869,2946.7,2946.4,0.16973]
[1765901417740,1.847e-05,2946.8,2946.7,0.16971]
[1765901418035,1.847e-05,2946.8,2946.1,3.2078]
[1765901418246,3.2078,2946.3,2945.6,1.764]
[1765901418535,3.2078,2946.0,2945.4,0.00352826]
[1765901418740,0.0050869,2946.2,2945.4,3.21132826]
[1765901419033,3.2078,2945.8,2945.4,0.00352826]
[1765901419239,3.2078,2946.1,2945.4,0.00352826]
[1765901419537,0.0050869,2946.2,2945.4,0.00352826]
[1765901419538,3.2078,2945.8,2945.4,0.00352826]
[1765901420433,0.0050869,2946.2,2945.4,0.00352826]
[1765901420434,3.2078,2946.1,2945.6,1.5323]
[1765901420638,3.2078,2946.1,2945.4,3.21132826]
[1765901420837,3.2078,2946.0,2945.4,0.00352826]
[1765901421839,3.2078,2946.0,2945.6,1.5011]
[1765901422040,3.2078,2946.0,2945.6,5.95871438]
[1765901422235,0.0050869,2946.2,2945.7,3.2078]
[1765901422544,3.2078,2945.9,2945.4,0.00352826]
[1765901422741,3.2078,2946.0,2945.6,1.47]
[1765901423042,3.2078,2946.0,2945.6,5.96999193]
[1765901423239,0.0050869,2946.2,2945.7,3.2078]
[1765901423433,0.0050869,2946.2,2945.9,0.16976]
[1765901423635,0.0050869,2946.2,2946.0,3.2078]
[1765901423833,0.0050869,2946.2,2945.9,0.16976]
[1765901424238,0.0050869,2946.2,2945.8,3.2078]
[1765901424839,3.2078,2946.7,2946.1,3.2078]
[1765901425343,1.847e-05,2946.8,2945.6,1.47]
[1765901425740,3.2078,2946.4,2945.7,3.2078]
[1765901425941,0.00336,2946.3,2945.7,3.2078]
[1765901426339,0.00336,2946.3,2945.8,4.56702172]
[1765901426736,0.00336,2946.3,2946.1,0.16974]
[1765901426935,0.00336,2946.3,2946.2,0.16974]
[1765901427141,3.2078,2946.7,2946.4,0.16973]
[1765901427338,3.2078,2946.7,2946.5,0.16972]
[1765901427541,3.2078,2946.7,2946.5,4.50982015]
[1765901427839,3.2078,2946.7,2946.5,0.16972]
[1765901428636,1.847e-05,2946.8,2946.7,0.16971]
[1765901429033,3.2078,2948.0,2947.7,1.9748]
[1765901429247,3.2078,2948.5,2947.8,0.16965]
[1765901429434,3.2078,2948.5,2947.8,4.62328168]
[1765901429747,3.2078,2948.5,2947.8,4.45363168]
[1765901429941,0.00383473,2948.5,2948.0,0.16964]
[1765901430251,0.00383473,2948.5,2948.4,5.1523]
[1765901431242,3.2078,2949.1,2948.4,9.64176288]
[1765901431442,3.2078,2949.4,2948.4,9.64176288]
[1765901431641,3.2078,2949.0,2948.4,3.2078]
[1765901431945,3.2078,2948.7,2948.1,3.2078]
[1765901432343,3.21130226,2948.7,2948.1,3.2078]
[1765901432950,3.2078,2948.4,2947.9,0.16964]
[1765901433950,3.2078,2948.4,2947.8,0.00260404]
[1765901434248,4.9205,2948.4,2947.8,0.00260404]
[1765901434446,3.2078,2948.1,2947.8,0.00260404]
[1765901436546,40.8,2948.0,2947.8,0.00260404]
[1765901436761,46.8,2948.0,2947.8,0.00260404]
[1765901436947,40.8,2948.0,2947.8,0.00260404]
[1765901440152,3.2078,2948.1,2947.8,0.00260404]
[1765901441548,1.9377,2949.8,2948.0,3.2078]
[1765901441549,3.2078,2948.8,2948.0,3.2078]
[1765901441750,3.2078,2948.8,2948.2,0.16963]
[1765901441949,3.2078,2948.8,2948.1,4.38857781]
[1765901442149,3.2078,2948.8,2947.9,3.37744]
[1765901442451,3.2078,2948.8,2948.4,1.6489]
[1765901442652,3.2078,2949.1,2948.5,3.2078]
[1765901442951,3.2078,2949.4,2948.5,10.1762675]
[1765901443151,3.2078,2949.4,2948.6,13.229]
[1765901443356,0.16948,2950.7,2948.6,13.229]
[1765901443357,3.2078,2949.7,2949.1,1.93137]
[1765901443650,3.2078,2950.1,2949.2,4.38115972]
[1765901443855,3.2078,2949.8,2949.2,4.38115972]
[1765901444253,0.00366868,2949.8,2949.2,4.38115972]
[1765901444851,0.00366868,2949.8,2949.3,3.2078]
[1765901445253,0.00366868,2949.8,2949.4,4.3825532]
[1765901445450,0.00366868,2949.8,2949.3,3.2078]
[1765901449659,0.00366868,2949.8,2949.6,1.7618]
[1765901449851,0.00366868,2949.8,2949.6,7.72644778]
[1765901450256,0.00366868,2949.8,2949.6,3.2078]
[1765901450768,0.00366868,2949.8,2949.7,5.8747]
[1765901451265,3.2078,2950.6,2949.7,4.31506328]
[1765901451467,3.2078,2950.2,2950.1,2.9534]
[1765901451658,3.2078,2950.2,2949.6,4.63]
[1765901451963,3.2078,2950.5,2949.7,4.50013376]
[1765901452151,3.21045592,2950.5,2949.7,4.67301199]
[1765901452356,3.21045592,2950.5,2949.9,2.58730778]
[1765901452557,3.21045592,2950.5,2950.4,5.8747]
[1765901452757,3.21045592,2950.5,2950.0,3.37732]
[1765901453558,3.21045592,2950.5,2950.4,2.9534]
[1765901454062,3.21045592,2950.5,2950.0,3.37732]
[1765901454260,0.00265592,2950.5,2950.0,3.37732]
[1765901454453,0.00265592,2950.5,2950.4,2.9534]
[1765901454856,0.00265592,2950.5,2950.4,5.8747]
[1765901455870,3.2078,2950.8,2950.3,3.2078]
[1765901456267,4.9094,2950.8,2950.3,3.2078]
[1765901456469,4.9094,2950.8,2950.0,3.2078]
[1765901456868,4.91325153,2950.8,2950.0,3.2078]
[1765901457869,3.21165153,2950.8,2950.7,5.8747]
[1765901458067,5.4479,2951.1,2950.7,3.2078]
[1765901458271,5.4479,2950.7,2950.6,0.0050869]
[1765901458664,2.758,2950.1,2950.0,3.2078]
[1765901458866,45.6545,2950.8,2950.0,6.1612]
[1765901459066,45.6571547,2950.8,2950.0,6.1612]
[1765901459464,4.8571547,2950.8,2950.0,3.2078]
[1765901459669,4.8571547,2950.8,2950.1,0.0050869]
[1765901459864,2.758,2950.2,2950.1,0.0050869]
[1765901460069,7.1071,2950.2,2950.1,0.0050869]
[1765901460266,10.867,2950.2,2949.7,0.00333823]
[1765901460463,3.2078,2949.8,2949.0,3.2078]
[1765901460665,3.2078,2949.5,2949.0,3.2078]
[1765901461273,3.2078,2949.5,2949.0,0.0050869]
[1765901461472,3.2078,2949.5,2949.0,0.00847018]
[1765901461677,44.0078,2949.5,2949.0,0.00847018]
[1765901462074,1.6594,2949.0,2948.4,3.2078]
[1765901462278,3.2078,2948.8,2948.1,3.48284558]
[1765901462672,3.2078,2948.2,2947.2,4.9696]
[1765901462979,3.2078,2948.1,2947.4,2.58730778]
[1765901463172,0.0050869,2948.0,2947.6,3.2078]
[1765901463777,3.2078,2947.9,2947.5,0.0050869]
[1765901464773,2.58730778,2947.6,2947.4,0.00279233]
[1765901464976,3.2078,2947.5,2946.6,3.2078]
[1765901465178,2.58730778,2947.2,2946.0,1.7618]
[1765901465379,1.4811,2947.7,2945.8,0.16976]
[1765901465380,2.9377559,2947.5,2945.8,0.16976]
[1765901465775,40.8,2947.4,2945.8,0.16976]
[1765901465981,40.8,2947.4,2946.4,0.0050869]
[1765901466481,1.4811,2947.0,2946.4,0.0050869]
[1765901467775,40.8,2947.4,2946.5,0.16973]
[1765901467974,0.0050869,2948.0,2946.6,0.16972]
[1765901468390,40.8,2947.9,2946.7,4.36540014]
[1765901468576,40.8,2947.9,2946.4,0.0050869]
[1765901470092,3.2078,2947.3,2946.4,0.0050869]
[1765901470284,3.2078,2946.7,2946.4,0.0050869]
[1765901471783,3.2078,2947.3,2946.5,3.2078]
[1765901471986,3.2078,2947.4,2946.7,3.2078]
[1765901472185,1.4811,2947.7,2946.7,3.2078]
[1765901472186,4.6889,2947.7,2946.7,3.2078]
[1765901472393,4.6889,2947.7,2946.8,4.49367884]
[1765901472590,3.2128869,2948.0,2947.1,3.2078]
[1765901472785,3.2128869,2948.0,2947.1,3.37749]
[1765901472991,3.2128869,2948.0,2947.2,4.32504869]
[1765901473286,3.2128869,2948.0,2946.5,0.16972]
[1765901473287,4.6889,2947.7,2946.8,3.2078]
[1765901475187,3.2078,2947.3,2946.8,3.2078]
[1765901475385,3.2078,2947.0,2946.4,3.2128869]
[1765901475785,3.2078,2947.0,2946.4,0.0050869]
[1765901475987,4.6889,2947.0,2946.4,0.0050869]
[1765901476390,45.4889,2947.0,2946.4,0.0050869]
[1765901476685,3.2078,2946.5,2946.4,0.0050869]
[1765901477082,3.2078,2946.5,2945.8,0.0042056]
[1765901477282,3.2078,2945.9,2945.8,0.0042056]
[1765901477595,3.21090247,2945.9,2944.8,3.2078]
[1765901477888,3.2078,2945.5,2944.8,3.2078]
[1765901478088,0.0050869,2945.4,2944.9,5.67345963]
[1765901478393,0.0050869,2945.4,2945.1,3.2078]
[1765901478686,0.0050869,2945.4,2945.2,4.36807273]
[1765901479295,0.0050869,2945.4,2945.1,0.00250965]
[1765901479695,0.0050869,2945.4,2945.1,3.21030965]
[1765901480388,0.0050869,2945.4,2945.1,0.00250965]
[1765901480596,3.2078,2945.2,2945.1,0.00250965]
[1765901480782,3.2078,2945.2,2944.9,0.0050869]
[1765901481789,3.2078,2945.2,2944.9,0.00922905]
[1765901481985,40.8,2945.1,2944.9,0.00922905]
[1765901482186,3.2078,2945.2,2944.9,0.00922905]
[1765901482382,0.0050869,2945.4,2944.9,0.00922905]
[1765901482583,3.2078,2945.2,2944.9,0.00922905]
[1765901483388,3.2078,2945.2,2944.9,2.905e-05]
[1765901483792,9.2078,2945.2,2944.9,2.905e-05]
[1765901484184,28.3615559,2945.2,2944.9,2.905e-05]
[1765901484383,28.3615559,2945.2,2942.5,2.9377559]
[1765901484384,0.9388,2943.5,2942.5,3.2078]
[1765901484594,4.1466,2943.5,2942.5,3.2078]
[1765901484793,3.2078,2943.5,2942.8,4.365]
[1765901485093,3.2078,2944.4,2943.6,0.16989]
[1765901485292,3.21098124,2944.4,2943.9,3.2078]
[1765901485494,0.00509606,2944.3,2944.2,4.766]
[1765901485693,0.00509606,2944.3,2944.0,4.50464461]
[1765901485894,0.00509606,2944.3,2944.0,3.2078]
[1765901486192,0.00509606,2944.3,2944.2,3.2078]
[1765901486396,0.00509606,2944.3,2943.8,3.2078]
[1765901489494,0.00509606,2944.3,2944.2,1.5582]
[1765901489691,0.00509606,2944.3,2944.2,4.766]
[1765901489893,0.00509606,2944.3,2944.2,9.20900893]
[1765901490191,0.00509606,2944.3,2944.2,3.2078]
[1765901490602,0.00509606,2944.3,2944.2,9.12892055]
[1765901490787,3.2078,2945.1,2944.2,15.12892055]
[1765901490989,3.2078,2945.5,2944.6,3.2078]
[1765901491199,1.02796115,2945.4,2944.6,3.2078]
[1765901491493,3.2078,2945.8,2945.2,3.2078]
[1765901491694,3.2078,2946.4,2945.2,0.00509606]
[1765901491896,0.00509606,2945.8,2945.4,3.2078]
[1765901492097,1.02879521,2945.7,2945.3,3.2078]
[1765901492405,0.00509606,2945.8,2945.3,3.2078]
[1765901492599,0.00509606,2945.8,2945.2,0.00509606]
[1765901492600,0.99695043,2945.7,2945.2,0.00509606]
[1765901492904,0.00509606,2945.8,2945.2,0.00509606]
[1765901493102,0.99692713,2945.7,2945.4,3.2078]
[1765901493297,0.00509606,2945.8,2945.4,3.2078]
[1765901493506,0.98852218,2945.7,2945.4,3.2078]
[1765901493696,0.00509606,2945.8,2945.4,3.2078]
[1765901493900,0.00509606,2945.8,2945.7,3.2078]
[1765901494203,0.00509606,2945.8,2945.7,0.00409284]
[1765901494404,0.99443713,2945.8,2945.7,0.00409284]
[1765901494798,0.99443713,2945.8,2945.2,0.00509606]
[1765901494995,1.4639,2945.6,2945.2,0.00509606]
[1765901495203,0.98934107,2945.5,2945.2,0.00509606]
[1765901495405,0.98934107,2945.4,2945.2,0.00509606]
[1765901495606,0.98934107,2945.3,2945.2,0.00509606]
[1765901495807,0.00509606,2945.8,2945.2,0.00820035]
[1765901496105,0.98318893,2945.7,2945.2,0.00820035]
[1765901496302,2.44708893,2945.6,2945.2,0.00820035]
[1765901496607,0.98318893,2945.5,2945.2,0.00820035]
[1765901496809,0.98318893,2945.4,2945.2,0.00820035]
[1765901497016,0.00509606,2945.8,2945.2,0.00820035]
[1765901497304,0.98328075,2945.7,2945.2,0.00820035]
[1765901497511,0.98328075,2945.6,2945.2,0.00820035]
[1765901497808,0.98328075,2945.5,2945.2,0.00820035]
[1765901498009,0.98328075,2945.4,2945.2,0.00820035]
[1765901498210,0.98179299,2945.3,2945.2,0.00820035]
[1765901498402,0.00509606,2945.8,2945.2,0.00820035]
[1765901498604,0.98225766,2945.7,2945.4,3.2078]
[1765901498911,0.98225766,2945.6,2945.4,4.7569]
[1765901499110,0.00509606,2945.8,2945.4,4.92669]
[1765901499301,0.98221236,2945.7,2945.4,4.92669]
[1765901499501,0.00509606,2945.8,2945.4,4.92669]
[1765901499698,0.98265392,2945.7,2945.5,4.38602543]
[1765901500006,0.00509606,2945.8,2945.6,3.2078]
[1765901500205,0.98261511,2945.7,2945.6,3.2078]
[1765901500606,0.98261511,2945.7,2945.6,5.7619]
[1765901500909,0.98261511,2945.7,2945.6,3.2078]
[1765901501109,0.98261511,2945.7,2945.6,5.7619]
[1765901501705,0.98261511,2945.7,2945.6,2.5541]
[1765901501910,0.98261511,2945.7,2945.6,5.0524]
[1765901502103,0.00509606,2945.8,2945.5,3.2078]
[1765901502104,0.00509606,2945.8,2945.7,5.0524]
[1765901502304,0.98836413,2945.8,2945.7,2.5541]
[1765901502714,0.98836413,2945.8,2945.7,5.0524]
[1765901503206,0.98836413,2945.8,2945.7,2.5541]
[1765901503410,0.98836413,2945.8,2945.7,5.0524]
[1765901503605,0.98836413,2945.8,2945.7,2.5541]
[1765901503811,0.98836413,2945.8,2945.7,5.0524]
[1765901504216,0.98836413,2945.8,2945.7,5.22217]
[1765901504511,0.98836413,2945.8,2945.7,9.70712422]
[1765901504811,0.00280933,2946.4,2946.3,5.0524]
[1765901505016,1.80623053,2947.2,2947.1,2.5541]
[1765901505217,2.79122991,2947.2,2947.1,2.5541]
[1765901505407,0.98499938,2947.2,2946.7,3.2078]
[1765901505606,0.98499938,2947.1,2947.0,3.2078]
[1765901506116,0.98776352,2947.1,2947.0,3.2078]
[1765901507417,0.00276414,2947.1,2947.0,3.2078]
[1765901507717,0.98150724,2947.1,2947.0,3.2078]
[1765901508014,0.98150724,2947.1,2946.8,0.00509606]
[1765901508015,1.4639,2947.0,2946.8,0.00509606]
[1765901508215,0.9787431,2946.9,2946.8,0.00509606]
[1765901511012,5.8834431,2946.9,2946.8,0.00509606]
[1765901511213,5.8834431,2946.9,2946.3,3.2078]
[1765901511412,0.9787431,2946.8,2946.3,3.2078]
[1765901511613,0.00276414,2947.1,2946.3,3.2078]
[1765901511815,0.97811432,2947.0,2946.3,3.2078]
[1765901512013,0.97811432,2946.9,2946.3,3.2078]
[1765901512217,0.00276414,2947.1,2946.3,3.21289606]
[1765901512412,0.97795114,2947.0,2946.3,3.21289606]
[1765901512612,0.00276414,2947.1,2946.3,3.21289606]
[1765901512812,0.97794828,2947.0,2946.3,3.21289606]
[1765901513016,0.97794828,2946.9,2946.3,3.21289606]
[1765901513206,0.00276414,2947.1,2946.3,3.21289606]
[1765901513410,4.9047,2945.7,2945.6,3.2078]
[1765901513615,2.4212,2945.7,2945.6,3.2078]
[1765901513819,1.4639,2946.0,2945.5,3.2078]
[1765901514020,0.98506534,2945.9,2945.5,3.2078]
[1765901514215,2.4212,2945.6,2945.5,3.2078]
[1765901514417,4.9047,2945.6,2945.5,3.2078]
[1765901514614,0.98575919,2945.6,2945.5,2.65441]
[1765901515017,1.4639,2945.4,2944.3,0.16985]
[1765901515214,3.2078,2945.0,2944.3,3.2078]
[1765901515520,0.98634604,2944.9,2943.6,1.71899]
[1765901515721,1.4639,2945.4,2943.6,1.71899]
[1765901515915,0.98640875,2945.3,2943.6,1.71899]
[1765901516118,0.98640875,2945.2,2943.7,23.76076771]
[1765901516417,0.98640875,2945.1,2943.7,23.93065771]
[1765901516617,3.2078,2944.9,2944.1,3.2078]
[1765901516919,3.2078,2944.9,2944.2,5.82127942]
[1765901518022,3.2078,2945.2,2944.2,5.82127942]
[1765901518223,3.2078,2945.2,2944.4,3.2078]
[1765901518618,3.2078,2945.2,2944.5,4.43077067]
[1765901518818,3.2078,2945.2,2944.4,3.2078]
[1765901519318,3.2078,2945.2,2944.5,4.47197339]
[1765901519917,0.0033473,2945.3,2944.7,3.2078]
[1765901520324,3.2078,2945.2,2944.7,3.2078]
[1765901521223,3.2078,2944.9,2944.3,3.2078]
[1765901522322,3.2078,2945.2,2944.3,3.2078]
[1765901522717,0.0033473,2945.3,2944.3,3.2078]
[1765901522718,1.4639,2944.8,2944.3,3.2078]
[1765901522918,3.2078,2944.9,2944.3,3.2078]
[1765901523122,44.0078,2945.2,2944.4,4.35727969]
[1765901523423,3.2078,2945.2,2944.6,3.2078]
[1765901523626,3.2078,2945.2,2945.1,4.9116]
[1765901523919,3.2078,2945.2,2945.1,2.5541]
[1765901524425,3.2078,2945.2,2944.8,1.4413]
[1765901524426,3.2078,2945.2,2944.6,3.2078]
[1765901524822,3.2078,2945.2,2945.1,4.7211]
[1765901525333,0.0033473,2945.3,2945.2,4.7211]
[1765901525622,0.0033473,2945.3,2945.2,3.2078]
[1765901526827,0.0033473,2945.3,2944.8,3.2078]
[1765901527221,0.0033473,2945.3,2944.2,1.2203]
[1765901527222,3.2078,2945.1,2944.4,3.2078]
[1765901527626,4.6517,2944.8,2944.1,3.2078]
[1765901529533,3.2078,2944.8,2944.1,3.2078]
[1765901529731,3.2078,2945.1,2944.4,3.2078]
[1765901530132,0.0033473,2945.3,2944.8,1.4164]
[1765901530525,0.0033473,2945.3,2944.9,4.63731574]
[1765901530829,0.0033473,2945.3,2945.0,0.16981]
[1765901531228,0.0033473,2945.3,2945.2,0.1698]
[1765901531425,4.73e-05,2945.3,2945.2,0.1698]
[1765901531632,3.2078,2946.1,2945.6,1.58298]
[1765901531831,3.2078,2946.4,2945.6,4.79078]
[1765901532031,3.2078,2946.4,2945.7,4.3156423]
[1765901532623,0.008365,2945.8,2945.7,4.3156423]
[1765901532827,0.008365,2945.8,2945.7,4.4854123]
[1765901533027,3.2078,2947.0,2946.1,0.16975]
[1765901533227,3.2078,2947.0,2946.1,5.97267108]
[1765901533434,3.2078,2947.0,2946.3,1.4413]
[1765901533931,3.2078,2947.0,2946.1,5.97267108]
[1765901533932,3.2078,2947.0,2946.4,4.4725715]
[1765901534136,0.00509606,2946.9,2946.4,4.47766756]
[1765901534433,0.00509606,2946.9,2946.4,0.00509606]
[1765901535228,0.00509606,2946.9,2946.4,3.21289606]
[1765901535433,0.00509606,2946.9,2946.5,4.38103547]
[1765901536737,0.00509606,2946.9,2946.7,3.2078]
[1765901537238,0.00509606,2946.9,2946.8,4.44132016]
[1765901538243,0.00509606,2946.9,2946.8,6.80492016]
[1765901538442,0.00509606,2946.9,2946.8,9.16242016]
[1765901539628,0.00509606,2946.9,2946.8,4.7211]
[1765901540933,0.00509606,2946.9,2946.8,9.23279571]
[1765901541441,0.00509606,2946.9,2946.8,4.7211]
[1765901542036,0.00509606,2946.9,2946.7,3.2078]
[1765901542244,2.4047,2946.8,2946.4,3.21289606]
[1765901542937,4.7025,2946.5,2946.4,3.21289606]
[1765901543844,7.9103,2946.5,2946.4,0.00509606]
[1765901544443,4.7025,2946.4,2945.5,3.2078]
[1765901544642,3.2078,2946.2,2945.5,3.2078]
[1765901545140,44.0078,2946.2,2945.5,3.2078]
[1765901545332,3.2078,2946.2,2945.5,3.2078]
[1765901545535,3.2078,2946.5,2946.4,4.7211]
[1765901545936,3.2078,2946.5,2945.8,3.2078]
[1765901546134,4.7025,2945.9,2945.8,3.2078]